bitfinex/quotes_ETHUSD_20260228
["timestamp","ask_amount","ask_price","bid_price","bid_amount"]
[1772305265467,1.29178938,1935.3,1934.2,7.28462602]
[1772305265637,6.0151649,1935.2,1934.2,1.29252404]
[1772305265964,7.30667123,1935.8,1934.7,5.99210198]
[1772305266173,7.30667123,1935.8,1934.4,12.84339016]
[1772305266379,7.30667123,1935.8,1934.4,10.83939016]
[1772305266532,7.30667123,1935.8,1934.2,1.29252404]
[1772305266533,6.0151649,1934.8,1933.7,0.001]
[1772305266741,2.22,1934.8,1933.7,5.99310198]
[1772305267567,2.22,1934.8,1933.9,10.83939016]
[1772305267745,2.22,1935.3,1934.3,5.99210198]
[1772305267947,5.16642829,1935.6,1934.5,4.84728818]
[1772305268562,7.30673799,1935.7,1934.6,1.29225679]
[1772305271572,7.30673799,1935.7,1934.5,5.16902718]
[1772305271877,6.0151649,1935.2,1933.8,12.1321147]
[1772305272197,2.221,1935.1,1933.9,11.16284562]
[1772305272392,8.2361649,1935.1,1933.9,11.16284562]
[1772305273570,2.221,1935.1,1934.0,5.99210198]
[1772305273786,1.29198966,1935.0,1934.1,1.29259086]
[1772305274394,1.291891,1935.2,1934.2,5.99210198]
[1772305275197,7.3070559,1935.2,1934.2,5.99210198]
[1772305275370,7.3070559,1935.2,1934.1,1.29259086]
[1772305275780,7.3070559,1935.2,1933.9,11.16246545]
[1772305277082,7.3070559,1935.2,1934.0,6.16972662]
[1772305277569,7.38564756,1935.5,1934.4,6.16972662]
[1772305277570,1.29174698,1935.4,1934.4,6.16972662]
[1772305277981,1.29174698,1935.4,1934.5,1.29232359]
[1772305278363,7.18461946,1935.4,1934.5,1.29232359]
[1772305278582,5.89487248,1935.2,1934.2,5.16992563]
[1772305280719,7.18677908,1935.2,1934.2,5.16992563]
[1772305282320,5.89487248,1935.2,1934.2,5.16992563]
[1772305282514,5.89487248,1935.2,1934.4,6.16972662]
[1772305282515,0.002,1935.2,1934.4,6.16972662]
[1772305282715,0.002,1935.2,1934.6,1.29225679]
[1772305283422,0.002,1935.2,1934.7,3.47512583]
[1772305283722,0.002,1935.2,1934.6,7.46198341]
[1772305285021,0.002,1935.3,1934.7,9.64485245]
[1772305286220,0.002,1935.5,1935.1,9.64485245]
[1772305286392,0.002,1935.5,1935.1,11.65585245]
[1772305286716,7.18406201,1936.2,1935.1,11.65585245]
[1772305286922,5.89287248,1936.2,1935.2,1.29185613]
[1772305287935,5.89487248,1936.6,1936.0,3.47512583]
[1772305288246,5.89487248,1936.6,1935.8,3.47512583]
[1772305288553,0.002,1936.6,1936.0,3.47512583]
[1772305288950,0.002,1936.6,1936.1,1.29125561]
[1772305290345,1.29056453,1937.2,1936.3,6.16972662]
[1772305291047,1.29056453,1937.2,1936.4,1.29105556]
[1772305292828,0.002,1936.4,1936.2,5.16463385]
[1772305295046,0.002,1936.4,1936.1,5.16495987]
[1772305295361,0.002,1936.4,1935.7,8.18172662]
[1772305295680,0.002,1936.4,1936.0,3.47512583]
[1772305296696,2.216,1937.3,1936.2,9.64485245]
[1772305296977,2.216,1937.3,1936.6,3.47512583]
[1772305296978,0.002,1937.3,1936.6,3.47512583]
[1772305297139,0.002,1937.3,1936.7,1.29085557]
[1772305297975,5.89487248,1937.3,1936.7,1.29085557]
[1772305298163,5.89487248,1937.3,1936.3,2.02]
[1772305299136,5.89287248,1937.1,1936.2,5.16473859]
[1772305300270,0.002,1937.3,1936.3,6.16972662]
[1772305300473,0.002,1937.3,1936.6,6.16972662]
[1772305300670,5.89287248,1936.9,1935.9,6.16972662]
[1772305301070,1.2906606,1937.0,1936.1,1.29125561]
[1772305301367,1.2906606,1937.0,1936.1,7.46098223]
[1772305302562,7.18353308,1937.0,1936.1,1.29125561]
[1772305303165,5.89287248,1937.0,1936.1,3.47512583]
[1772305303391,1.29061961,1937.1,1936.2,6.16972662]
[1772305304166,1.29057878,1937.2,1936.2,6.16972662]
[1772305304493,1.29057878,1937.2,1936.2,6.17072662]
[1772305304658,0.002,1936.9,1936.2,6.17072662]
[1772305305295,0.002,1936.9,1936.3,1.29112224]
[1772305306891,0.002,1936.9,1936.3,4.76624807]
[1772305308501,0.002,1936.9,1936.4,8.47214812]
[1772305308697,0.002,1936.9,1936.5,3.47512583]
[1772305308995,0.002,1936.9,1936.5,9.92527395]
[1772305309788,0.002,1936.9,1936.6,1.29092223]
[1772305314321,0.002,1936.9,1936.5,5.16368893]
[1772305314617,0.002,1936.9,1936.3,8.63881476]
[1772305314618,6.37377158,1936.9,1936.3,1.29112224]
[1772305314799,0.002,1936.9,1936.3,1.29112224]
[1772305315200,6.37377158,1936.9,1936.3,1.29112224]
[1772305315399,6.37177158,1936.8,1936.2,0.001]
[1772305316435,6.37177158,1936.6,1936.0,0.001]
[1772305316739,6.37177158,1936.6,1936.0,1.29232122]
[1772305318536,1.29098889,1936.5,1936.4,0.001]
[1772305318945,1.29098889,1936.5,1936.2,0.001]
[1772305319543,7.66276047,1936.5,1936.2,0.001]
[1772305319748,6.37177158,1936.5,1936.2,0.001]
[1772305320527,11.46456051,1936.8,1936.2,0.001]
[1772305320919,6.37177158,1936.7,1936.2,0.001]
[1772305321224,6.37177158,1936.6,1936.0,0.001]
[1772305321418,6.37177158,1936.0,1935.0,1.29198966]
[1772305321716,6.37177158,1936.0,1934.5,5.16907017]
[1772305321717,6.37177158,1935.5,1934.5,5.16907017]
[1772305322560,6.37177158,1935.4,1934.6,3.47512583]
[1772305322854,6.37177158,1935.4,1934.4,11.21759754]
[1772305323154,6.37177158,1935.4,1934.6,3.47512583]
[1772305323351,7.6633317,1935.7,1934.6,9.92527395]
[1772305323554,5.66612583,1936.0,1935.2,3.47512583]
[1772305323555,2.191,1936.0,1935.2,3.47512583]
[1772305323858,7.66302988,1936.1,1935.2,3.47512583]
[1772305324020,7.66302881,1936.1,1935.0,11.96027395]
[1772305324219,6.37177158,1936.1,1935.0,11.96027395]
[1772305324430,6.37177158,1936.4,1935.4,6.45014812]
[1772305324756,7.66286283,1936.4,1935.5,1.2916559]
[1772305324977,1.29103382,1936.5,1935.5,1.2916559]
[1772305325267,7.6628054,1936.5,1935.5,1.2916559]
[1772305325833,9.84689741,1936.4,1935.5,1.2916559]
[1772305326066,6.37177158,1936.4,1935.5,1.2916559]
[1772305326736,6.37177158,1936.4,1935.2,5.16741433]
[1772305326737,1.29112224,1936.3,1935.3,6.45014812]
[1772305327062,7.66289382,1936.3,1935.2,5.16741433]
[1772305327963,6.37177158,1936.2,1935.2,5.16741433]
[1772305328165,6.37177158,1935.9,1935.0,1.29198966]
[1772305328544,6.37177158,1935.7,1934.7,1.29219]
[1772305328741,7.66336075,1935.6,1934.7,1.29219]
[1772305330840,7.66336075,1935.6,1934.6,5.1687734]
[1772305331046,7.66336075,1935.6,1934.6,15.09404735]
[1772305331246,7.66336075,1935.6,1934.8,0.001]
[1772305332065,6.37177158,1935.3,1934.7,0.001]
[1772305332991,1.29198966,1935.0,1934.7,0.001]
[1772305334890,11.13888707,1935.0,1934.7,0.001]
[1772305335085,6.37177158,1934.9,1934.5,0.001]
[1772305335386,7.66371894,1935.1,1934.5,0.001]
[1772305336216,6.37177158,1934.6,1934.2,0.001]
[1772305336997,1.29232359,1934.5,1934.2,0.001]
[1772305337156,3.48816234,1934.8,1934.2,0.001]
[1772305337886,2.196,1934.8,1934.2,0.001]
[1772305339297,7.36375987,1935.0,1934.2,0.001]
[1772305339765,6.07170464,1934.8,1934.0,1.29365177]
[1772305339978,6.07170464,1934.7,1934.0,1.29365177]
[1772305340180,6.07170464,1934.7,1934.0,1.29265177]
[1772305340392,6.07170464,1935.0,1934.1,9.93515181]
[1772305340605,1.29197404,1935.1,1934.1,6.46002598]
[1772305340904,7.36367868,1935.1,1934.1,6.46002598]
[1772305341394,6.07170464,1935.0,1934.2,1.29252404]
[1772305343317,1.29205643,1934.9,1934.2,1.29252404]
[1772305344917,7.36376107,1934.9,1934.0,5.17053348]
[1772305345414,1.29205643,1934.9,1934.1,6.46002598]
[1772305345596,7.36356526,1935.2,1934.4,6.46002598]
[1772305346000,0.002,1934.8,1934.4,6.46002598]
[1772305346392,0.002,1934.8,1934.2,2.49224343]
[1772305346698,0.002,1934.8,1934.1,6.46102598]
[1772305347615,0.002,1934.8,1934.2,7.75255002]
[1772305349363,6.07370464,1935.1,1934.8,6.46002598]
[1772305349364,0.002,1935.1,1934.8,6.46002598]
[1772305349648,0.002,1935.1,1934.6,1.29225679]
[1772305350739,0.002,1935.1,1934.2,10.24472662]
[1772305350941,0.002,1935.1,1934.3,5.16958269]
[1772305351525,6.07370464,1935.1,1934.2,1.29248449]
[1772305351731,7.3636943,1935.0,1934.1,0.001]
[1772305352116,7.3636943,1935.0,1934.0,1.2894577]
[1772305352415,0.002,1935.1,1934.4,6.46002598]
[1772305352720,1.29393361,1935.1,1934.4,6.46002598]
[1772305353027,0.002,1935.1,1934.4,6.46002598]
[1772305353428,1.29393141,1935.1,1934.3,2.49224343]
[1772305353643,1.29393141,1935.1,1934.2,1.29252404]
[1772305355278,1.29393141,1935.1,1934.2,7.75255002]
[1772305355484,7.36563605,1935.1,1934.2,7.75255002]
[1772305355842,7.36563605,1935.1,1934.2,1.29252404]
[1772305356744,7.36563605,1935.1,1934.2,7.75255002]
[1772305357353,6.07370464,1935.1,1934.2,7.75255002]
[1772305357872,1.29198966,1935.0,1934.2,7.75255002]
[1772305358073,7.3636943,1935.0,1934.2,7.75255002]
[1772305358579,7.3636943,1935.0,1934.2,1.29252404]
[1772305360269,0.002,1935.1,1934.3,6.46002598]
[1772305360573,0.002,1935.0,1934.3,6.46002598]
[1772305361286,6.07170464,1934.9,1934.1,1.2935794]
[1772305361645,0.002,1935.0,1934.1,7.75360538]
[1772305362680,6.07370464,1935.0,1934.1,7.75360538]
[1772305363911,6.27784926,1934.9,1934.1,1.2935794]
[1772305364069,6.27784926,1934.6,1934.1,0.001]
[1772305364269,6.27784926,1934.6,1934.0,0.001]
[1772305364487,7.57017285,1934.5,1934.0,0.001]
[1772305364888,6.27784926,1934.5,1934.0,0.001]
[1772305365086,1.29225679,1934.6,1934.0,0.001]
[1772305365596,6.27784926,1934.5,1934.0,0.001]
[1772305366803,7.7351794,1934.4,1934.0,0.001]
[1772305367800,7.7351794,1934.4,1933.8,0.001]
[1772305367801,4.86704645,1934.3,1933.8,0.001]
[1772305368178,11.30983545,1934.3,1933.8,0.001]
[1772305368878,11.30983545,1934.0,1933.2,12.01082797]
[1772305369079,6.442789,1934.0,1933.2,12.01082797]
[1772305369295,1.29252404,1934.2,1933.3,5.87889493]
[1772305369296,2.19,1934.1,1933.3,5.87889493]
[1772305369505,6.442789,1934.3,1933.2,12.01082797]
[1772305369714,6.442789,1934.0,1933.2,10.71763723]
[1772305370287,4.86704645,1933.8,1933.2,10.71763723]
[1772305370598,6.442789,1933.7,1933.2,4.21763723]
[1772305370784,6.17743987,1933.5,1933.2,4.21763723]
[1772305371191,6.17743987,1933.5,1932.9,0.153133]
[1772305371413,3.08483922,1933.4,1932.9,1.44652033]
[1772305371609,3.08483922,1933.3,1932.9,0.153133]
[1772305371781,3.08483922,1933.2,1932.9,0.153133]
[1772305371982,8.64531125,1933.5,1932.9,0.153133]
[1772305372315,3.0850069,1933.4,1932.9,0.153133]
[1772305372603,8.64531125,1933.5,1933.3,0.001]
[1772305372604,6.17743987,1933.5,1933.3,0.001]
[1772305372811,3.08186337,1933.4,1932.9,0.153133]
[1772305373011,3.08186337,1933.3,1933.0,0.001]
[1772305373211,3.48296598,1933.6,1933.0,0.001]
[1772305373708,3.48294456,1933.6,1933.0,0.001]
[1772305374112,9.66038443,1933.6,1933.0,0.001]
[1772305374409,6.17743987,1933.5,1933.0,0.001]
[1772305374587,8.64531125,1933.5,1933.0,0.001]
[1772305375207,1.29305886,1933.4,1933.0,0.001]
[1772305375786,6.17643987,1933.3,1932.7,12.24872826]
[1772305376603,1.29305886,1933.4,1932.7,13.54225016]
[1772305376913,4.65787138,1933.6,1932.8,5.87889493]
[1772305377122,1.29278888,1933.9,1933.0,5.87889493]
[1772305378398,4.86704645,1933.8,1933.0,5.87889493]
[1772305378605,1.29278888,1933.9,1932.9,7.17228827]
[1772305379139,2.46787138,1934.1,1933.0,5.87889493]
[1772305379303,1.29256037,1934.2,1933.2,5.87889493]
[1772305380237,1.29243958,1934.4,1933.2,5.87889493]
[1772305380818,6.15948603,1934.4,1933.2,5.87889493]
[1772305381011,1.29232517,1934.5,1933.6,5.87889493]
[1772305381211,1.29225679,1934.6,1933.8,5.87889493]
[1772305381925,7.46869666,1934.6,1933.7,1.29285825]
[1772305382326,6.17643987,1934.4,1933.5,7.17188505]
[1772305382920,4.86704645,1934.5,1933.2,5.87889493]
[1772305382921,6.17643987,1934.2,1933.2,5.87889493]
[1772305383109,1.2926577,1934.0,1932.8,7.17235519]
[1772305384739,1.2926577,1934.0,1933.9,0.001]
[1772305385038,7.46909757,1934.0,1933.0,5.87889493]
[1772305385235,3.07455838,1933.9,1933.8,0.001]
[1772305385408,9.25099825,1933.9,1933.1,1.29325953]
[1772305385605,9.24999825,1933.8,1933.1,1.29325953]
[1772305385824,1.2926577,1934.0,1933.6,0.001]
[1772305386018,3.07507507,1933.9,1933.6,0.001]
[1772305386517,3.4894905,1934.3,1933.6,0.001]
[1772305386729,3.0756485,1934.2,1933.6,0.001]
[1772305386930,3.0756485,1934.2,1933.6,5.87989493]
[1772305387334,4.36822952,1934.2,1933.7,1.29285825]
[1772305387542,0.002,1934.5,1933.7,7.17175318]
[1772305387746,4.37071415,1934.5,1933.7,7.17175318]
[1772305387912,0.002,1934.5,1933.7,7.17175318]
[1772305388112,4.37071342,1934.5,1933.7,7.17175318]
[1772305388318,4.37071342,1934.5,1933.7,5.87889493]
[1772305388319,3.07638068,1934.4,1933.7,5.87889493]
[1772305389243,3.07638068,1934.4,1933.8,1.29279139]
[1772305389554,3.07638068,1934.3,1933.6,1.2939029]
[1772305389756,14.118867,1934.2,1933.6,0.001]
[1772305389918,3.07638068,1934.1,1933.6,0.001]
[1772305390240,3.07638068,1934.0,1933.6,0.001]
[1772305390543,2.46787138,1934.3,1933.6,0.001]
[1772305390544,2.2,1934.1,1933.6,0.001]
[1772305390837,1.29240305,1934.4,1933.6,7.17281575]
[1772305391042,3.08019596,1934.3,1933.6,7.17281575]
[1772305391216,3.08019596,1934.2,1933.6,7.17281575]
[1772305391416,1.29240305,1934.4,1933.6,7.17281575]
[1772305391746,3.08203514,1934.3,1933.6,7.17281575]
[1772305391920,3.08203514,1934.2,1933.6,1.29391488]
[1772305392241,3.08203514,1934.1,1933.6,7.17280981]
[1772305392439,1.29434715,1934.5,1933.7,5.87889493]
[1772305393349,1.29434715,1934.5,1933.8,1.29279139]
[1772305393552,0.002,1934.5,1933.8,7.17168632]
[1772305396869,0.002,1934.5,1933.6,1.29391684]
[1772305396870,5.90273431,1934.3,1933.6,1.29391684]
[1772305397856,1.29252404,1934.2,1933.6,0.001]
[1772305398261,1.29252404,1934.2,1933.9,0.001]
[1772305400468,1.29252404,1934.2,1933.8,0.001]
[1772305400666,7.19525835,1934.2,1933.8,0.001]
[1772305400974,9.66312973,1934.2,1933.8,0.001]
[1772305401177,9.66312973,1934.2,1933.3,7.71977358]
[1772305402555,5.90273431,1934.1,1933.2,1.29316802]
[1772305402880,8.37060569,1934.1,1933.2,7.71984435]
[1772305404249,8.37060569,1934.0,1933.2,7.7198609]
[1772305404476,3.08899639,1933.9,1933.2,7.7198609]
[1772305404675,4.38178778,1933.8,1933.2,7.7198609]
[1772305404878,3.08899639,1933.7,1933.2,7.7198609]
[1772305405074,1.29279139,1933.8,1933.2,7.7198609]
[1772305405252,1.29275432,1933.9,1933.2,7.7198609]
[1772305405453,3.09042812,1933.8,1933.2,7.7198609]
[1772305405652,1.29275432,1933.9,1933.2,7.7198609]
[1772305405854,3.09041212,1933.8,1933.2,7.7198609]
[1772305406161,1.2926577,1934.0,1933.2,7.7198609]
[1772305406369,3.09329352,1933.9,1933.2,7.7198609]
[1772305406564,3.76052908,1934.0,1933.2,7.7198609]
[1772305406565,3.09329352,1933.8,1933.2,7.7198609]
[1772305406764,3.09329352,1933.7,1933.2,7.7198609]
[1772305406964,1.29282788,1933.8,1933.4,6.42667633]
[1772305407171,3.09329352,1933.7,1933.4,6.42667633]
[1772305407352,1.29282788,1933.8,1933.1,7.71988248]
[1772305407550,3.09388231,1933.7,1933.1,7.71988248]
[1772305407777,3.09388231,1933.6,1933.1,7.71988248]
[1772305408002,1.29282788,1933.8,1933.1,7.71988248]
[1772305408201,3.09402642,1933.7,1933.1,7.71988248]
[1772305408405,3.09402642,1933.6,1933.1,7.71988248]
[1772305408606,3.09402642,1933.5,1933.1,7.71988248]
[1772305408806,2.46787138,1933.9,1933.1,7.71988248]
[1772305409110,1.29264098,1934.1,1933.4,6.42667633]
[1772305410308,1.29245721,1934.4,1933.5,6.42667633]
[1772305410777,1.29245721,1934.4,1933.6,1.29292511]
[1772305410778,0.002,1934.4,1933.6,1.29292511]
[1772305410974,0.002,1934.4,1933.7,6.42667633]
[1772305411220,0.002,1934.4,1933.5,1.29299198]
[1772305411221,5.90473431,1934.4,1933.5,1.29299198]
[1772305411414,5.90273431,1934.2,1933.4,7.71972922]
[1772305412608,5.90273431,1934.2,1933.4,7.71973249]
[1772305413415,1.29250459,1934.3,1933.4,7.71973249]
[1772305414281,7.1952389,1934.3,1933.4,6.42667633]
[1772305414478,7.1952389,1934.3,1933.4,7.71972635]
[1772305416116,3.8,1934.2,1933.4,1.29305002]
[1772305416283,5.90273431,1934.0,1933.2,1.29418717]
[1772305417310,5.90273431,1934.0,1933.2,0.001]
[1772305417512,8.10473431,1934.0,1933.2,7.72086161]
[1772305417814,1.29272454,1933.9,1933.2,7.72086161]
[1772305418308,1.29272454,1933.9,1933.2,0.001]
[1772305418309,7.19545885,1933.9,1933.2,0.001]
[1772305421896,7.19545885,1933.9,1933.2,6.42767633]
[1772305422096,7.19545885,1933.9,1933.2,7.72082437]
[1772305422323,1.29272454,1933.9,1933.2,7.72082437]
[1772305424345,5.17012884,1934.2,1933.2,7.72082437]
[1772305424530,6.2612206,1934.1,1933.2,7.72082437]
[1772305425042,11.7062206,1934.1,1933.3,0.001]
[1772305425239,6.2632206,1934.1,1933.3,0.001]
[1772305427023,7.4882609,1934.0,1933.3,0.001]
[1772305428119,6.1956032,1933.6,1932.8,1.29340244]
[1772305428736,6.1956032,1933.6,1932.8,7.64431422]
[1772305428942,1.29299198,1933.5,1932.8,7.64431422]
[1772305429254,6.1956032,1933.9,1932.8,7.64431422]
[1772305429430,0.002,1934.1,1933.3,6.35091178]
[1772305429431,7.49024673,1934.1,1933.3,6.35091178]
[1772305430459,6.1956032,1934.0,1932.9,6.35091178]
[1772305431270,1.29272454,1933.9,1933.0,1.29332643]
[1772305431470,1.29272454,1933.9,1933.1,6.35091178]
[1772305431963,7.48832774,1933.9,1933.1,6.35091178]
[1772305433470,7.48832774,1933.9,1933.2,1.29319263]
[1772305434476,7.48832774,1933.9,1933.1,7.6441231]
[1772305435046,1.29272454,1933.9,1933.1,7.6441231]
[1772305435245,6.1956032,1933.8,1933.1,7.6441231]
[1772305435770,1.29285825,1933.7,1933.1,7.6441231]
[1772305436343,7.48846145,1933.7,1933.1,7.64416014]
[1772305438357,7.48846145,1933.7,1933.3,0.001]
[1772305443393,3.799,1933.3,1933.2,0.001]
[1772305446284,5.09212574,1933.3,1933.2,0.001]
[1772305446685,3.799,1933.3,1933.2,0.001]
[1772305446875,1.29310447,1933.4,1933.2,0.001]
[1772305448502,6.1956032,1933.7,1933.2,0.001]
[1772305448792,7.48859518,1933.5,1932.6,7.64445464]
[1772305449599,1.29299198,1933.5,1932.6,7.64445464]
[1772305449799,7.48859518,1933.5,1932.6,7.64445464]
[1772305452698,7.48859518,1933.5,1932.7,0.001]
[1772305453004,6.1956032,1933.1,1932.7,0.001]
[1772305453205,6.1956032,1932.9,1932.2,7.64472574]
[1772305453410,6.1956032,1932.9,1931.8,2.42268419]
[1772305453411,6.1956032,1932.5,1931.8,8.04971709]
[1772305453620,2.221,1932.8,1931.9,6.35091178]
[1772305453825,2.221,1932.8,1932.4,0.001]
[1772305454382,8.4166032,1932.8,1932.4,0.001]
[1772305454583,6.1956032,1932.7,1932.4,0.001]
[1772305454885,3.51451058,1932.8,1932.4,0.001]
[1772305455101,5.52090516,1933.1,1932.4,6.35191178]
[1772305455102,7.83672174,1933.1,1932.4,6.35191178]
[1772305457110,7.83672174,1933.1,1932.5,1.29366106]
[1772305457415,0.34782584,1933.1,1932.5,7.28011106]
[1772305457707,0.34782584,1933.1,1932.4,5.17587673]
[1772305457708,6.35092997,1933.0,1932.4,0.001]
[1772305458309,6.35092997,1933.0,1932.4,1.29472719]
[1772305458480,6.35092997,1933.0,1932.4,0.001]
[1772305458917,6.35092997,1933.0,1932.4,1.29472034]
[1772305459209,1.29339334,1932.9,1932.4,0.001]
[1772305459912,7.64432331,1932.9,1932.4,0.001]
[1772305460209,6.35092997,1932.9,1932.4,0.001]
[1772305460425,1.29336069,1933.0,1932.4,0.001]
[1772305460730,7.64429066,1933.0,1932.4,0.001]
[1772305461713,6.35092997,1932.7,1932.4,0.001]
[1772305462214,6.35092997,1932.7,1931.9,7.28051]
[1772305463630,1.29359412,1932.6,1931.9,7.28050663]
[1772305464005,6.35092997,1932.5,1931.8,6.39113419]
[1772305464316,6.35092997,1932.5,1931.8,0.40468419]
[1772305465333,6.35092997,1932.5,1931.8,6.39113419]
[1772305465526,1.293728,1932.4,1931.8,6.39113419]
[1772305466135,1.293728,1932.4,1931.9,0.001]
[1772305466344,1.29362892,1932.6,1931.9,5.98745]
[1772305467431,1.29362892,1932.6,1932.0,1.29399585]
[1772305467637,0.35017693,1932.9,1932.2,5.98645]
[1772305468066,1.29308105,1933.4,1932.2,5.98645]
[1772305468269,1.29308105,1933.4,1932.1,7.50010663]
[1772305468270,7.64395101,1933.5,1932.5,5.98645]
[1772305468436,7.64395101,1933.5,1932.6,5.98645]
[1772305468437,7.64394214,1933.5,1932.6,5.98645]
[1772305468834,6.35092997,1933.5,1932.6,5.98645]
[1772305469036,1.29300335,1933.5,1932.6,5.98645]
[1772305469645,1.29300335,1933.5,1932.8,5.98645]
[1772305470776,7.64393332,1933.5,1932.6,7.280039]
[1772305471869,10.14992997,1933.4,1932.6,7.280039]
[1772305472081,1.29300335,1933.5,1932.6,7.280039]
[1772305472464,7.64393332,1933.5,1932.6,7.28003852]
[1772305472981,7.64393332,1933.5,1932.6,5.98645]
[1772305473769,7.64393332,1933.5,1932.6,7.28003589]
[1772305474344,1.29300335,1933.5,1932.6,7.28003589]
[1772305477274,7.64393332,1933.5,1932.6,7.28003589]
[1772305479777,0.002,1933.4,1932.6,7.28003589]
[1772305480197,6.35292997,1933.4,1932.6,7.28003589]
[1772305480474,6.35292997,1933.4,1932.5,5.17537648]
[1772305480475,6.35292997,1933.4,1932.5,1.29465716]
[1772305480995,6.35092997,1933.2,1932.5,0.001]
[1772305481582,6.35092997,1933.0,1932.5,0.001]
[1772305481783,7.64417536,1933.2,1932.5,5.98745]
[1772305483002,7.64417536,1933.2,1932.5,0.001]
[1772305483298,6.35092997,1933.1,1932.5,0.001]
[1772305483496,6.43853139,1932.9,1932.5,0.001]
[1772305484706,6.43853139,1932.9,1932.0,1.29399245]
[1772305485083,6.43853139,1932.9,1931.9,7.65093434]
[1772305485403,6.43853139,1932.8,1931.9,6.35691463]
[1772305485575,7.73205857,1932.7,1931.9,6.35691463]
[1772305485770,7.73205857,1932.7,1931.8,0.40468419]
[1772305486005,7.73205857,1932.7,1931.8,1.6988112]
[1772305486502,7.73205857,1932.7,1931.8,0.40468419]
[1772305487075,1.29352718,1932.7,1931.9,6.36374387]
[1772305487600,6.38524071,1932.7,1932.0,1.29399585]
[1772305488600,6.38524071,1932.7,1931.9,7.65780524]
[1772305489607,1.29359412,1932.6,1931.9,7.65780524]
[1772305490002,11.55961719,1932.7,1931.9,7.65780524]
[1772305490305,7.67881946,1932.7,1931.9,7.65780524]
[1772305491512,7.67881946,1932.7,1931.8,0.40468419]
[1772305491697,7.67890177,1932.5,1931.8,0.40468419]
[1772305491902,6.38524071,1932.3,1931.8,0.40468419]
[1772305493225,8.60424071,1932.4,1931.8,8.06255308]
[1772305493386,8.60424071,1932.4,1932.0,0.001]
[1772305493590,9.89799899,1932.4,1932.0,0.001]
[1772305494201,2.219,1932.4,1932.0,0.001]
[1772305494401,3.51273839,1932.4,1932.0,0.001]
[1772305494921,3.51274081,1932.4,1932.0,0.001]
[1772305495419,2.219,1932.4,1932.0,0.001]
[1772305495612,3.51273711,1932.4,1932.0,0.001]
[1772305497222,6.38524071,1932.6,1932.0,6.36474387]
[1772305497412,3.51725953,1933.1,1932.1,6.36374387]
[1772305497610,3.51725953,1933.1,1932.2,6.44366968]
[1772305497813,3.51725953,1933.1,1932.4,6.44366968]
[1772305498018,6.44563884,1933.0,1932.3,1.29379495]
[1772305498398,6.44563884,1933.0,1932.3,7.73746463]
[1772305498793,3.51726261,1933.1,1932.3,7.73746463]
[1772305499019,2.224,1933.1,1932.3,7.73746463]
[1772305500406,0.002,1933.4,1932.3,7.73746463]
[1772305500609,0.002,1933.4,1932.6,6.44366968]
[1772305501329,7.74071558,1933.4,1932.6,6.44366968]
[1772305502032,7.74071558,1933.4,1932.7,7.73719686]
[1772305502354,6.44563884,1933.3,1932.2,7.73753159]
[1772305502902,6.44563884,1933.1,1932.2,6.44366968]
[1772305503107,4.87918268,1933.2,1932.1,3.96448401]
[1772305503108,6.44563884,1932.9,1932.1,7.73756994]
[1772305504123,7.7390991,1932.8,1932.1,7.73756994]
[1772305504700,6.44563884,1932.6,1932.0,0.001]
[1772305505236,6.44563884,1932.5,1931.6,7.73790353]
[1772305505438,8.66763884,1932.4,1931.6,7.73792616]
[1772305506040,7.73943379,1932.3,1931.6,7.73792543]
[1772305506346,7.73943379,1932.3,1931.6,7.73792797]
[1772305506643,7.73943379,1932.3,1931.6,7.73793227]
[1772305506842,7.73943379,1932.3,1931.3,6.44366968]
[1772305506843,6.44563884,1932.2,1931.3,6.44366968]
[1772305507046,6.44563884,1932.2,1931.2,1.29447959]
[1772305507343,6.44563884,1932.2,1931.0,6.44366968]
[1772305507344,6.44563884,1932.1,1931.0,7.73831592]
[1772305507547,6.44563884,1932.1,1931.0,6.44366968]
[1772305507752,9.02481834,1931.6,1931.5,0.001]
[1772305507918,6.44563884,1931.5,1930.6,19.126027]
[1772305508120,1.29439784,1931.4,1930.6,1.29488663]
[1772305508325,6.44563884,1931.1,1930.2,1.29520256]
[1772305508629,6.44563884,1931.1,1930.1,0.03690859]
[1772305508630,6.44563884,1930.8,1930.1,0.03690859]
[1772305508829,8.66663884,1931.0,1930.1,7.77583518]
[1772305509033,6.44563884,1930.9,1930.1,0.03690859]
[1772305509249,6.44563884,1930.7,1930.1,0.03690859]
[1772305509458,6.44563884,1930.6,1930.1,0.03690859]
[1772305509748,11.32482152,1930.4,1929.4,10.40994561]
[1772305509925,2.221,1930.3,1929.4,10.40994561]
[1772305510119,9.9618131,1930.3,1929.4,7.73936186]
[1772305510327,6.44563884,1930.6,1929.6,6.44366968]
[1772305510649,11.32482152,1930.2,1929.4,1.29569218]
[1772305510852,2.221,1930.1,1929.4,1.29569218]
[1772305511355,8.66663884,1930.1,1929.4,1.29569218]
[1772305511537,6.44563884,1930.0,1929.2,5.18338491]
[1772305511846,7.74054926,1930.7,1929.6,6.44366968]
[1772305512048,2.221,1930.6,1929.6,6.44366968]
[1772305512249,3.51598024,1930.6,1929.7,7.73920784]
[1772305512446,2.221,1930.6,1929.7,7.73920784]
[1772305512657,3.51594694,1930.6,1929.7,7.73920784]
[1772305513030,3.51596464,1930.6,1929.7,7.73920784]
[1772305513325,2.221,1931.1,1930.2,6.44366968]
[1772305513737,2.221,1931.1,1930.0,2.67058375]
[1772305513738,12.53909129,1931.6,1930.4,6.44366968]
[1772305514034,6.44563884,1931.5,1930.4,6.44366968]
[1772305514232,7.74000801,1931.5,1930.5,1.29500129]
[1772305514446,6.44563884,1931.3,1930.5,1.29500129]
[1772305514833,2.221,1931.3,1930.5,7.73867097]
[1772305515031,6.44563884,1931.2,1930.4,1.29501755]
[1772305515562,6.44563884,1931.2,1930.3,1.29507828]
[1772305516063,6.44563884,1931.0,1930.1,5.18102882]
[1772305516235,1.29473302,1930.9,1930.1,5.18102882]
[1772305517160,1.29473302,1930.9,1930.1,11.58508254]
[1772305517466,5.88760598,1931.1,1930.1,11.58508254]
[1772305518270,1.29466597,1931.0,1930.1,11.58508254]
[1772305518475,5.88760598,1930.8,1929.5,11.58671915]
[1772305518641,5.88760598,1930.5,1929.5,11.58671915]
[1772305519132,5.88760598,1930.2,1929.3,1.29576263]
[1772305519328,2.219,1930.1,1929.3,7.69981635]
[1772305519953,8.10660598,1930.1,1929.2,1.2958245]
[1772305520150,8.10660598,1930.1,1929.1,1.4490617]
[1772305520151,5.88760598,1929.8,1929.1,1.4490617]